[Event "Late-Titled-Tuesday-Blitz-January-23-2024"]
[Site "Chess.com"]
[Date "2024.01.23"]
[Round "6"]
[White "NikolaGry"]
[Black "SanchezKelvin"]
[Result "0-1"]
[WhiteElo "2737"]
[BlackElo "2563"]
[TimeControl "180+1"]
[EndTime "15:05:39 PST"]
[Termination "SanchezKelvin won on time"]

1. e4 {[%clk 0:03:00.9]} 1... e5 {[%clk 0:02:53.7]} 2. Nf3 {[%clk 0:03:00.3]}
2... Nc6 {[%clk 0:02:54.1]} 3. Bb5 {[%clk 0:02:59.7]} 3... a6 {[%clk 0:02:54.5]}
4. Bxc6 {[%clk 0:02:59.4]} 4... dxc6 {[%clk 0:02:55.4]} 5. d4 {[%clk 0:02:59.6]}
5... exd4 {[%clk 0:02:55.5]} 6. Qxd4 {[%clk 0:02:59.6]} 6... Qxd4 {[%clk
0:02:55.7]} 7. Nxd4 {[%clk 0:02:59.7]} 7... Bd7 {[%clk 0:02:56.6]} 8. Nc3 {[%clk
0:02:59]} 8... O-O-O {[%clk 0:02:57.5]} 9. Be3 {[%clk 0:02:58.9]} 9... Ne7
{[%clk 0:02:56.9]} 10. O-O-O {[%clk 0:02:57.1]} 10... Ng6 {[%clk 0:02:56.8]} 11.
h4 {[%clk 0:02:44]} 11... h5 {[%clk 0:02:55.9]} 12. Bg5 {[%clk 0:02:25.2]} 12...
f6 {[%clk 0:02:54.6]} 13. Be3 {[%clk 0:02:25.1]} 13... Bd6 {[%clk 0:02:54.6]}
14. Nde2 {[%clk 0:02:18.4]} 14... Rhe8 {[%clk 0:02:52.7]} 15. f3 {[%clk
0:02:04.6]} 15... b5 {[%clk 0:02:39.5]} 16. a3 {[%clk 0:01:46.6]} 16... a5
{[%clk 0:02:35.7]} 17. Nd4 {[%clk 0:01:34.2]} 17... Ne5 {[%clk 0:02:15.6]} 18.
Nce2 {[%clk 0:01:27.3]} 18... Nc4 {[%clk 0:02:01.3]} 19. Bf4 {[%clk 0:01:21]}
19... Bc5 {[%clk 0:01:52.4]} 20. Rd3 {[%clk 0:01:09.3]} 20... Rg8 {[%clk
0:01:31.8]} 21. Ng3 {[%clk 0:00:46.6]} 21... g5 {[%clk 0:00:51]} 22. hxg5 {[%clk
0:00:46]} 22... fxg5 {[%clk 0:00:50.1]} 23. Bd2 {[%clk 0:00:45.8]} 23... Nxd2
{[%clk 0:00:49.2]} 24. Kxd2 {[%clk 0:00:31.2]} 24... Bxd4 {[%clk 0:00:37.3]} 25.
Rxd4 {[%clk 0:00:29.2]} 25... h4 {[%clk 0:00:37.6]} 26. Ne2 {[%clk 0:00:27.4]}
26... Be6 {[%clk 0:00:32.6]} 27. Ke3 {[%clk 0:00:25.5]} 27... Bc4 {[%clk
0:00:28.8]} 28. Rxd8+ {[%clk 0:00:24]} 28... Rxd8 {[%clk 0:00:28.2]} 29. Nd4
{[%clk 0:00:24.1]} 29... c5 {[%clk 0:00:27.7]} 30. Nf5 {[%clk 0:00:23.3]} 30...
Be6 {[%clk 0:00:21.7]} 31. Ng7 {[%clk 0:00:15.9]} 31... Bd7 {[%clk 0:00:21.1]}
32. Nh5 {[%clk 0:00:14.6]} 32... Rf8 {[%clk 0:00:19.8]} 33. g3 {[%clk
0:00:13.7]} 33... Be8 {[%clk 0:00:19.4]} 34. Ng7 {[%clk 0:00:09.8]} 34... hxg3
{[%clk 0:00:18.8]} 35. Rg1 {[%clk 0:00:09.9]} 35... g4 {[%clk 0:00:16.3]} 36.
fxg4 {[%clk 0:00:08.9]} 36... Bc6 {[%clk 0:00:10.8]} 37. Nf5 {[%clk 0:00:08.3]}
37... Re8 {[%clk 0:00:10]} 38. Nxg3 {[%clk 0:00:08.4]} 38... c4 {[%clk
0:00:10.2]} 39. Kf4 {[%clk 0:00:08.5]} 39... Rf8+ {[%clk 0:00:09.8]} 40. Nf5
{[%clk 0:00:08.5]} 40... Rd8 {[%clk 0:00:09.9]} 41. g5 {[%clk 0:00:07.1]} 41...
Be8 {[%clk 0:00:10.1]} 42. g6 {[%clk 0:00:07.1]} 42... Rd2 {[%clk 0:00:08.8]}
43. g7 {[%clk 0:00:04.9]} 43... Bf7 {[%clk 0:00:09.3]} 44. Nh6 {[%clk
0:00:04.7]} 44... Be6 {[%clk 0:00:09.3]} 45. Ke5 {[%clk 0:00:04.8]} 45... Kd7
{[%clk 0:00:09.7]} 46. Rg6 {[%clk 0:00:04.8]} 46... Rd6 {[%clk 0:00:06.3]} 47.
Nf5 {[%clk 0:00:02.1]} 47... Rc6 {[%clk 0:00:04.2]} 0-1

[Event "Late-Titled-Tuesday-Blitz-January-23-2024"]
[Site "Chess.com"]
[Date "2024.01.23"]
[Round "6"]
[White "annasargsyan_m"]
[Black "falzehope0"]
[Result "1-0"]
[WhiteElo "2532"]
[BlackElo "2405"]
[TimeControl "180+1"]
[EndTime "15:05:44 PST"]
[Termination "annasargsyan_m won by resignation"]

1. d4 {[%clk 0:02:57.6]} 1... e6 {[%clk 0:02:59.5]} 2. c4 {[%clk 0:02:57.5]}
2... d5 {[%clk 0:02:59.4]} 3. Nc3 {[%clk 0:02:57]} 3... f5 {[%clk 0:02:58.9]} 4.
g3 {[%clk 0:02:56.3]} 4... c6 {[%clk 0:02:58]} 5. Bg2 {[%clk 0:02:57]} 5... Bd6
{[%clk 0:02:58.2]} 6. b3 {[%clk 0:02:56.1]} 6... Nf6 {[%clk 0:02:57.9]} 7. Bb2
{[%clk 0:02:56.6]} 7... O-O {[%clk 0:02:57.7]} 8. e3 {[%clk 0:02:57.2]} 8...
Nbd7 {[%clk 0:02:56.7]} 9. Nge2 {[%clk 0:02:57.1]} 9... Qe7 {[%clk 0:02:53.3]}
10. Qc2 {[%clk 0:02:57.2]} 10... Ne4 {[%clk 0:02:51.1]} 11. f3 {[%clk
0:02:53.5]} 11... Ng5 {[%clk 0:02:50]} 12. h4 {[%clk 0:02:50.7]} 12... Nf7
{[%clk 0:02:49.9]} 13. O-O-O {[%clk 0:02:51.3]} 13... Nh6 {[%clk 0:02:47.7]} 14.
Kb1 {[%clk 0:02:50.6]} 14... a5 {[%clk 0:02:46.2]} 15. e4 {[%clk 0:02:48]} 15...
fxe4 {[%clk 0:02:36.4]} 16. fxe4 {[%clk 0:02:42.3]} 16... Rf2 {[%clk 0:02:32.9]}
17. Bh3 {[%clk 0:02:38.4]} 17... e5 {[%clk 0:02:32.6]} 18. exd5 {[%clk
0:02:36.1]} 18... exd4 {[%clk 0:02:22]} 19. Rxd4 {[%clk 0:02:35.1]} 19... Nf6
{[%clk 0:02:20.4]} 20. Bxc8 {[%clk 0:02:34.4]} 20... Rxc8 {[%clk 0:02:19.7]} 21.
Rhd1 {[%clk 0:02:33]} 21... c5 {[%clk 0:02:05.4]} 22. R4d2 {[%clk 0:02:32.4]}
22... Nhg4 {[%clk 0:02:00.1]} 23. Qd3 {[%clk 0:02:20.8]} 23... Ne3 {[%clk
0:01:40.6]} 24. Re1 {[%clk 0:02:19.7]} 24... Ng2 {[%clk 0:01:32.1]} 25. Rg1
{[%clk 0:02:18.1]} 25... Re8 {[%clk 0:01:22.6]} 26. Nc1 {[%clk 0:02:09.5]} 26...
Ne1 {[%clk 0:00:58.5]} 27. Rxf2 {[%clk 0:01:48.2]} 27... Nxd3 {[%clk 0:00:57.1]}
28. Nxd3 {[%clk 0:01:49.1]} 28... Ne4 {[%clk 0:00:54.8]} 29. Re1 {[%clk
0:01:40.9]} 29... Nxc3+ {[%clk 0:00:41.2]} 30. Bxc3 {[%clk 0:01:41.8]} 30... Qd7
{[%clk 0:00:35.9]} 31. Rfe2 {[%clk 0:01:41.3]} 31... Rf8 {[%clk 0:00:32.2]} 32.
Kb2 {[%clk 0:01:32.5]} 32... Bxg3 {[%clk 0:00:29.6]} 33. Rg1 {[%clk 0:01:32]}
33... Rf3 {[%clk 0:00:25.8]} 34. Ne1 {[%clk 0:01:31.1]} 34... Rxc3 {[%clk
0:00:18.9]} 35. Kxc3 {[%clk 0:01:28.2]} 35... Qg4 {[%clk 0:00:17.9]} 36. Reg2
{[%clk 0:01:18.5]} 36... Be5+ {[%clk 0:00:17.4]} 37. Kc2 {[%clk 0:01:16.2]}
37... Qe4+ {[%clk 0:00:17.5]} 38. Nd3 {[%clk 0:01:16.7]} 38... Bd4 {[%clk
0:00:14.1]} 39. Kd2 {[%clk 0:01:06.8]} 39... Bxg1 {[%clk 0:00:11]} 40. Rxg1
{[%clk 0:01:07.7]} 40... g6 {[%clk 0:00:09.9]} 41. Re1 {[%clk 0:01:08.6]} 41...
Qd4 {[%clk 0:00:09.3]} 42. Re8+ {[%clk 0:01:01.7]} 42... Kf7 {[%clk 0:00:09.1]}
43. Rb8 {[%clk 0:01:02.4]} 43... Qxh4 {[%clk 0:00:05.7]} 44. Rxb7+ {[%clk
0:01:03]} 44... Kf8 {[%clk 0:00:05.3]} 45. Rb5 {[%clk 0:00:54.7]} 45... Qg5+
{[%clk 0:00:02.9]} 46. Kc2 {[%clk 0:00:53.1]} 46... Qg2+ {[%clk 0:00:02.5]} 47.
Kc3 {[%clk 0:00:53.7]} 47... h6 {[%clk 0:00:01.2]} 48. Nxc5 {[%clk 0:00:53.9]}
48... h5 {[%clk 0:00:02.1]} 49. Ne6+ {[%clk 0:00:54.1]} 49... Kf7 {[%clk
0:00:02.1]} 50. Rb7+ {[%clk 0:00:54.3]} 50... Kg8 {[%clk 0:00:02.3]} 51. Rg7+
{[%clk 0:00:53.6]} 51... Kh8 {[%clk 0:00:02.6]} 52. Rf7 {[%clk 0:00:51.8]} 52...
h4 {[%clk 0:00:02.9]} 53. d6 {[%clk 0:00:52.2]} 53... Qg3+ {[%clk 0:00:01.5]}
54. Kc2 {[%clk 0:00:47.5]} 54... Qxd6 {[%clk 0:00:02.4]} 55. Nf4 {[%clk
0:00:42.4]} 55... Qe5 {[%clk 0:00:01.7]} 56. Nxg6+ {[%clk 0:00:42.2]} 56... Kg8
{[%clk 0:00:02.3]} 57. Nxe5 {[%clk 0:00:43.1]} 57... h3 {[%clk 0:00:02.1]} 58.
Rf3 {[%clk 0:00:43.4]} 58... h2 {[%clk 0:00:02.4]} 59. Rh3 {[%clk 0:00:44.3]}
59... Kg7 {[%clk 0:00:02]} 60. Rxh2 {[%clk 0:00:44.4]} 60... Kf6 {[%clk
0:00:02.9]} 61. Nc6 {[%clk 0:00:44.7]} 61... Ke6 {[%clk 0:00:03.3]} 62. Nxa5
{[%clk 0:00:45]} 62... Kd6 {[%clk 0:00:03.8]} 63. Kc3 {[%clk 0:00:45.6]} 63...
Kc7 {[%clk 0:00:03.6]} 64. b4 {[%clk 0:00:46.5]} 64... Kb6 {[%clk 0:00:03.5]}
65. b5 {[%clk 0:00:47.4]} 65... Kxa5 {[%clk 0:00:03.7]} 66. Kd4 {[%clk
0:00:47.1]} 66... Kb6 {[%clk 0:00:04.1]} 67. Kd5 {[%clk 0:00:47]} 67... Kc7
{[%clk 0:00:04.7]} 68. Kc5 {[%clk 0:00:47.5]} 68... Kb7 {[%clk 0:00:05.1]} 69.
a4 {[%clk 0:00:47.6]} 69... Kc8 {[%clk 0:00:05.5]} 70. a5 {[%clk 0:00:48.5]}
70... Kd7 {[%clk 0:00:05.8]} 71. Rh6 {[%clk 0:00:48.2]} 71... Kd8 {[%clk
0:00:06.2]} 72. Kd6 {[%clk 0:00:48.2]} 72... Kc8 {[%clk 0:00:06.4]} 73. Rh7
{[%clk 0:00:47.8]} 73... Kb8 {[%clk 0:00:05.4]} 74. Kc6 {[%clk 0:00:48.4]} 74...
Ka8 {[%clk 0:00:05]} 75. Kb6 {[%clk 0:00:48.4]} 1-0

[Event "Late-Titled-Tuesday-Blitz-January-23-2024"]
[Site "Chess.com"]
[Date "2024.01.23"]
[Round "6"]
[White "The_Machine04"]
[Black "GlavkonVVS"]
[Result "1-0"]
[WhiteElo "2717"]
[BlackElo "2510"]
[TimeControl "180+1"]
[EndTime "15:05:47 PST"]
[Termination "The_Machine04 won by checkmate"]

1. d4 {[%clk 0:02:58.8]} 1... Nf6 {[%clk 0:02:40.4]} 2. Nf3 {[%clk 0:02:56.3]}
2... c5 {[%clk 0:02:40.4]} 3. e3 {[%clk 0:02:56.2]} 3... g6 {[%clk 0:02:40.3]}
4. Nbd2 {[%clk 0:02:55.5]} 4... cxd4 {[%clk 0:02:37.9]} 5. exd4 {[%clk
0:02:55.3]} 5... Bg7 {[%clk 0:02:38.2]} 6. c3 {[%clk 0:02:55.1]} 6... O-O {[%clk
0:02:38.5]} 7. Bd3 {[%clk 0:02:55.5]} 7... b6 {[%clk 0:02:39]} 8. O-O {[%clk
0:02:55.9]} 8... Bb7 {[%clk 0:02:39.4]} 9. Re1 {[%clk 0:02:55.9]} 9... d6 {[%clk
0:02:35.8]} 10. Qe2 {[%clk 0:02:55.8]} 10... e6 {[%clk 0:02:30.9]} 11. a4 {[%clk
0:02:51.1]} 11... a6 {[%clk 0:02:30.8]} 12. Nf1 {[%clk 0:02:49]} 12... Nbd7
{[%clk 0:02:30.2]} 13. Ng3 {[%clk 0:02:48.2]} 13... Re8 {[%clk 0:02:26.5]} 14.
h4 {[%clk 0:02:39.1]} 14... h5 {[%clk 0:02:25.3]} 15. Bg5 {[%clk 0:02:38.2]}
15... Qc7 {[%clk 0:02:25.1]} 16. Rad1 {[%clk 0:02:36]} 16... e5 {[%clk
0:02:18.8]} 17. dxe5 {[%clk 0:02:34.8]} 17... dxe5 {[%clk 0:02:16.1]} 18. Bxf6
{[%clk 0:02:01.9]} 18... Nxf6 {[%clk 0:02:09.8]} 19. Ne4 {[%clk 0:02:00.9]}
19... Nd5 {[%clk 0:02:03.9]} 20. g3 {[%clk 0:01:57.6]} 20... f5 {[%clk
0:01:50.1]} 21. Bc4 {[%clk 0:01:48.7]} 21... Rad8 {[%clk 0:01:38.7]} 22. Neg5
{[%clk 0:01:42.3]} 22... e4 {[%clk 0:01:24.6]} 23. Nd4 {[%clk 0:01:41.6]} 23...
e3 {[%clk 0:01:21.2]} 24. Nde6 {[%clk 0:01:08.2]} 24... exf2+ {[%clk 0:01:18.4]}
25. Kxf2 {[%clk 0:01:02.9]} 25... Qc8 {[%clk 0:01:12.8]} 26. Qd3 {[%clk
0:00:30.1]} 26... Rd6 {[%clk 0:01:02.4]} 27. Nf4 {[%clk 0:00:17.9]} 27... Qc5+
{[%clk 0:00:56.1]} 28. Kf1 {[%clk 0:00:14.4]} 28... Rxe1+ {[%clk 0:00:39]} 29.
Rxe1 {[%clk 0:00:15.3]} 29... b5 {[%clk 0:00:34]} 30. axb5 {[%clk 0:00:14.2]}
30... axb5 {[%clk 0:00:34.3]} 31. Re8+ {[%clk 0:00:14.4]} 31... Bf8 {[%clk
0:00:28]} 32. Rxf8+ {[%clk 0:00:14.7]} 32... Kxf8 {[%clk 0:00:28.3]} 33. Nge6+
{[%clk 0:00:15]} 33... Ke7 {[%clk 0:00:25.9]} 34. Nxc5 {[%clk 0:00:13.3]} 34...
Nxf4 {[%clk 0:00:19]} 35. gxf4 {[%clk 0:00:08]} 35... Rxd3 {[%clk 0:00:18.8]}
36. Bxd3 {[%clk 0:00:08.9]} 36... Bd5 {[%clk 0:00:18.8]} 37. Bxb5 {[%clk
0:00:08.7]} 37... Kd6 {[%clk 0:00:19.3]} 38. Nd3 {[%clk 0:00:08.8]} 38... Be4
{[%clk 0:00:19.5]} 39. Ne5 {[%clk 0:00:08.5]} 39... Ke6 {[%clk 0:00:19.9]} 40.
Nxg6 {[%clk 0:00:08.2]} 40... Kf6 {[%clk 0:00:20.5]} 41. Ne5 {[%clk 0:00:08.5]}
41... Bc2 {[%clk 0:00:20.7]} 42. Kf2 {[%clk 0:00:08.9]} 42... Ke6 {[%clk
0:00:21.1]} 43. Be2 {[%clk 0:00:09.8]} 43... Kd5 {[%clk 0:00:20.7]} 44. Ke3
{[%clk 0:00:09.3]} 44... Bb3 {[%clk 0:00:19.9]} 45. Bxh5 {[%clk 0:00:09.7]}
45... Kc5 {[%clk 0:00:20]} 46. Bf3 {[%clk 0:00:09.4]} 46... Kd6 {[%clk
0:00:20.3]} 47. h5 {[%clk 0:00:09.9]} 47... Ke7 {[%clk 0:00:20.8]} 48. h6 {[%clk
0:00:10.3]} 48... Kf6 {[%clk 0:00:21.4]} 49. Bh5 {[%clk 0:00:09.9]} 49... Bg8
{[%clk 0:00:20.9]} 50. Bg6 {[%clk 0:00:10.3]} 50... Bb3 {[%clk 0:00:18.3]} 51.
c4 {[%clk 0:00:10.2]} 51... Ba4 {[%clk 0:00:18.1]} 52. c5 {[%clk 0:00:09.1]}
52... Bb3 {[%clk 0:00:16.3]} 53. h7 {[%clk 0:00:09.5]} 53... Kg7 {[%clk
0:00:16.2]} 54. c6 {[%clk 0:00:10]} 54... Be6 {[%clk 0:00:16.1]} 55. c7 {[%clk
0:00:10.3]} 55... Bc8 {[%clk 0:00:16.3]} 56. b4 {[%clk 0:00:10.7]} 56... Kh8
{[%clk 0:00:16.2]} 57. Nf7+ {[%clk 0:00:10]} 57... Kg7 {[%clk 0:00:16.2]} 58.
h8=Q+ {[%clk 0:00:10.9]} 58... Kxg6 {[%clk 0:00:16.4]} 59. Ne5# {[%clk
0:00:11.8]} 1-0

[Event "Late-Titled-Tuesday-Blitz-January-23-2024"]
[Site "Chess.com"]
[Date "2024.01.23"]
[Round "6"]
[White "Filipets"]
[Black "emeli_chess"]
[Result "0-1"]
[WhiteElo "2583"]
[BlackElo "2469"]
[TimeControl "180+1"]
[EndTime "15:05:47 PST"]
[Termination "emeli_chess won by resignation"]

1. c4 {[%clk 0:03:00.9]} 1... e5 {[%clk 0:02:58.7]} 2. Nf3 {[%clk 0:03:01]} 2...
d6 {[%clk 0:02:58.5]} 3. d3 {[%clk 0:03:01.1]} 3... f5 {[%clk 0:02:57.8]} 4. g3
{[%clk 0:03:01]} 4... Nf6 {[%clk 0:02:57.3]} 5. Bg2 {[%clk 0:03:01.6]} 5... Be7
{[%clk 0:02:57.6]} 6. O-O {[%clk 0:03:02.2]} 6... O-O {[%clk 0:02:57.8]} 7. Nc3
{[%clk 0:03:02.6]} 7... a5 {[%clk 0:02:56.9]} 8. Rb1 {[%clk 0:03:02.5]} 8... Na6
{[%clk 0:02:42.4]} 9. a3 {[%clk 0:03:02]} 9... c6 {[%clk 0:02:36.7]} 10. b4
{[%clk 0:03:00.5]} 10... h6 {[%clk 0:02:31.6]} 11. Ne1 {[%clk 0:02:58.6]} 11...
Bd7 {[%clk 0:02:11.5]} 12. Nc2 {[%clk 0:02:55.1]} 12... Nc7 {[%clk 0:01:57.8]}
13. Be3 {[%clk 0:02:33.2]} 13... Ne6 {[%clk 0:01:52.7]} 14. b5 {[%clk
0:02:25.5]} 14... Nc5 {[%clk 0:01:47.1]} 15. d4 {[%clk 0:02:19]} 15... Nce4
{[%clk 0:01:39.9]} 16. Nxe4 {[%clk 0:02:18.4]} 16... Nxe4 {[%clk 0:01:39.8]} 17.
dxe5 {[%clk 0:02:16.5]} 17... dxe5 {[%clk 0:01:25]} 18. Qd3 {[%clk 0:02:00.4]}
18... Nc5 {[%clk 0:01:17.5]} 19. Bxc5 {[%clk 0:01:54]} 19... Bxc5 {[%clk
0:01:17]} 20. a4 {[%clk 0:01:54.5]} 20... e4 {[%clk 0:01:14.6]} 21. Qd2 {[%clk
0:01:49.6]} 21... Be6 {[%clk 0:01:14.2]} 22. Qc3 {[%clk 0:01:47]} 22... Qf6
{[%clk 0:01:09.2]} 23. Qb3 {[%clk 0:01:41.9]} 23... f4 {[%clk 0:00:58.9]} 24.
Bxe4 {[%clk 0:01:34]} 24... fxg3 {[%clk 0:00:58.7]} 25. hxg3 {[%clk 0:01:34.9]}
25... Bh3 {[%clk 0:00:44.2]} 26. Bg2 {[%clk 0:01:33.9]} 26... Qe6 {[%clk
0:00:41.7]} 27. Ne3 {[%clk 0:01:25.6]} 27... Bxe3 {[%clk 0:00:35.4]} 28. Qxe3
{[%clk 0:01:25]} 28... Qxe3 {[%clk 0:00:34.1]} 29. fxe3 {[%clk 0:01:25.9]} 29...
Bxg2 {[%clk 0:00:32.7]} 30. Kxg2 {[%clk 0:01:26.8]} 30... Rfe8 {[%clk
0:00:31.6]} 31. Rb3 {[%clk 0:01:18.5]} 31... Re4 {[%clk 0:00:29.3]} 32. Rf4
{[%clk 0:01:18.3]} 32... Rae8 {[%clk 0:00:29.3]} 33. Kf3 {[%clk 0:01:18.1]}
33... R4e6 {[%clk 0:00:24.5]} 34. Rd3 {[%clk 0:01:13]} 34... R8e7 {[%clk
0:00:22.1]} 35. g4 {[%clk 0:01:07.7]} 35... g5 {[%clk 0:00:19.4]} 36. Rfd4
{[%clk 0:01:05.6]} 36... Kg7 {[%clk 0:00:17.9]} 37. bxc6 {[%clk 0:00:50.9]}
37... bxc6 {[%clk 0:00:17.7]} 38. Rd6 {[%clk 0:00:51.6]} 38... Kf6 {[%clk
0:00:13]} 39. e4 {[%clk 0:00:49.3]} 39... Ke5 {[%clk 0:00:11.6]} 40. Rxe6+
{[%clk 0:00:49.2]} 40... Rxe6 {[%clk 0:00:11.7]} 41. c5 {[%clk 0:00:48.5]} 41...
Rf6+ {[%clk 0:00:11.4]} 42. Ke3 {[%clk 0:00:46.4]} 42... Rf4 {[%clk 0:00:11.8]}
43. Rd6 {[%clk 0:00:46.9]} 43... Rxe4+ {[%clk 0:00:11.7]} 44. Kf3 {[%clk
0:00:47.2]} 44... Rf4+ {[%clk 0:00:11.6]} 45. Kg3 {[%clk 0:00:46]} 45... Rxa4
{[%clk 0:00:11.1]} 46. Rxc6 {[%clk 0:00:43.5]} 46... Rc4 {[%clk 0:00:09]} 47.
Rxh6 {[%clk 0:00:43.4]} 47... Rxc5 {[%clk 0:00:07.7]} 48. Ra6 {[%clk 0:00:44]}
48... Ke4 {[%clk 0:00:07]} 49. Re6+ {[%clk 0:00:39.5]} 49... Kd5 {[%clk
0:00:05.9]} 50. Rg6 {[%clk 0:00:34.6]} 50... Ke4 {[%clk 0:00:05.4]} 51. Re6+
{[%clk 0:00:34.6]} 51... Re5 {[%clk 0:00:04.3]} 52. Ra6 {[%clk 0:00:34]} 52...
Ke3 {[%clk 0:00:04.4]} 53. Rb6 {[%clk 0:00:30.1]} 53... Kxe2 {[%clk 0:00:04.5]}
54. Rb2+ {[%clk 0:00:30.7]} 54... Kd3 {[%clk 0:00:04.8]} 55. Kf3 {[%clk
0:00:29.7]} 55... Kc3 {[%clk 0:00:04.8]} 56. Rb8 {[%clk 0:00:29.3]} 56... a4
{[%clk 0:00:04.6]} 57. Rc8+ {[%clk 0:00:29.6]} 57... Kb3 {[%clk 0:00:04.2]} 58.
Rb8+ {[%clk 0:00:30]} 58... Ka2 {[%clk 0:00:04.3]} 59. Rc8 {[%clk 0:00:29.2]}
59... a3 {[%clk 0:00:04.2]} 60. Ra8 {[%clk 0:00:30.1]} 60... Kb2 {[%clk
0:00:04.1]} 61. Rb8+ {[%clk 0:00:31]} 61... Ka1 {[%clk 0:00:04.3]} 62. Ra8
{[%clk 0:00:31.9]} 62... a2 {[%clk 0:00:04.6]} 63. Ra5 {[%clk 0:00:32.8]} 63...
Rxa5 {[%clk 0:00:04.1]} 0-1

[Event "Late-Titled-Tuesday-Blitz-January-23-2024"]
[Site "Chess.com"]
[Date "2024.01.23"]
[Round "6"]
[White "Qvalda"]
[Black "rionelG"]
[Result "1-0"]
[WhiteElo "2428"]
[BlackElo "2260"]
[TimeControl "180+1"]
[EndTime "15:05:47 PST"]
[Termination "Qvalda won on time"]

1. Nf3 {[%clk 0:02:58.1]} 1... d5 {[%clk 0:02:57.9]} 2. g3 {[%clk 0:02:55.9]}
2... Bf5 {[%clk 0:02:50.4]} 3. Bg2 {[%clk 0:02:55.9]} 3... c6 {[%clk 0:02:49]}
4. O-O {[%clk 0:02:56.2]} 4... e6 {[%clk 0:02:49.6]} 5. c4 {[%clk 0:02:56.6]}
5... Nf6 {[%clk 0:02:47.4]} 6. Qb3 {[%clk 0:02:56.6]} 6... Qc7 {[%clk
0:02:41.9]} 7. d3 {[%clk 0:02:55.3]} 7... Nbd7 {[%clk 0:02:38.7]} 8. Nc3 {[%clk
0:02:54]} 8... Bd6 {[%clk 0:02:27.5]} 9. cxd5 {[%clk 0:02:54.1]} 9... exd5
{[%clk 0:02:27]} 10. e4 {[%clk 0:02:53.6]} 10... dxe4 {[%clk 0:02:25.3]} 11.
dxe4 {[%clk 0:02:54.5]} 11... Bg4 {[%clk 0:02:23.4]} 12. h3 {[%clk 0:02:43.4]}
12... Bxf3 {[%clk 0:02:23]} 13. Bxf3 {[%clk 0:02:44.3]} 13... O-O {[%clk
0:02:23.1]} 14. Bg5 {[%clk 0:02:39.6]} 14... Bxg3 {[%clk 0:02:18]} 15. Bxf6
{[%clk 0:02:33.3]} 15... Bh2+ {[%clk 0:02:16.7]} 16. Kh1 {[%clk 0:02:31.6]}
16... Nxf6 {[%clk 0:02:17.3]} 17. Ne2 {[%clk 0:02:05.4]} 17... Be5 {[%clk
0:02:11.4]} 18. Rg1 {[%clk 0:02:04.2]} 18... Qc8 {[%clk 0:02:03.6]} 19. Bg4
{[%clk 0:01:51.1]} 19... Nxg4 {[%clk 0:02:03.3]} 20. Rxg4 {[%clk 0:01:51.1]}
20... Qe6 {[%clk 0:01:27.3]} 21. Qf3 {[%clk 0:01:40]} 21... Bxb2 {[%clk
0:01:20.4]} 22. Rag1 {[%clk 0:01:39]} 22... g6 {[%clk 0:01:15.8]} 23. Nf4 {[%clk
0:01:37.4]} 23... Qe5 {[%clk 0:01:09.1]} 24. h4 {[%clk 0:01:34.5]} 24... Qc3
{[%clk 0:01:05.5]} 25. Qg2 {[%clk 0:01:30.8]} 25... Rae8 {[%clk 0:00:46.2]} 26.
h5 {[%clk 0:01:25.5]} 26... Qe5 {[%clk 0:00:37.8]} 27. f3 {[%clk 0:00:45.3]}
27... Bd4 {[%clk 0:00:23.4]} 28. Rb1 {[%clk 0:00:35.4]} 28... Be3 {[%clk
0:00:20.4]} 29. hxg6 {[%clk 0:00:27.7]} 29... fxg6 {[%clk 0:00:18]} 30. Nxg6
{[%clk 0:00:23]} 30... hxg6 {[%clk 0:00:17.9]} 31. Rxg6+ {[%clk 0:00:23.1]}
31... Kf7 {[%clk 0:00:18.6]} 32. Rxb7+ {[%clk 0:00:23.2]} 32... Re7 {[%clk
0:00:18.6]} 33. Rg7+ {[%clk 0:00:15.9]} 33... Qxg7 {[%clk 0:00:15.9]} 34. Rxe7+
{[%clk 0:00:15.1]} 34... Kxe7 {[%clk 0:00:16.8]} 35. Qxg7+ {[%clk 0:00:15]}
35... Rf7 {[%clk 0:00:10.3]} 36. Qe5+ {[%clk 0:00:14.3]} 36... Kf8 {[%clk
0:00:10.6]} 37. Qb8+ {[%clk 0:00:12.9]} 37... Kg7 {[%clk 0:00:08.4]} 38. Kg2
{[%clk 0:00:13.3]} 38... Bf4 {[%clk 0:00:07.3]} 39. Qb2+ {[%clk 0:00:11.5]}
39... Kf8 {[%clk 0:00:06.3]} 40. Qc2 {[%clk 0:00:10.9]} 40... Rf6 {[%clk
0:00:05.1]} 41. Qc5+ {[%clk 0:00:09.9]} 41... Kf7 {[%clk 0:00:05.1]} 42. Qxa7+
{[%clk 0:00:10.5]} 42... Ke6 {[%clk 0:00:04.3]} 43. Qb7 {[%clk 0:00:08]} 43...
Kd6 {[%clk 0:00:03.5]} 44. Qb8+ {[%clk 0:00:07.6]} 44... Kc5 {[%clk 0:00:03.8]}
45. Qb2 {[%clk 0:00:06.2]} 45... Rg6+ {[%clk 0:00:02.9]} 46. Kf2 {[%clk
0:00:06]} 46... Kd6 {[%clk 0:00:02.4]} 47. Qd4+ {[%clk 0:00:05.1]} 47... Ke6
{[%clk 0:00:02]} 48. Qc4+ {[%clk 0:00:05]} 48... Kd6 {[%clk 0:00:01.9]} 49. a4
{[%clk 0:00:05.9]} 49... Be5 {[%clk 0:00:01.2]} 50. a5 {[%clk 0:00:05.3]} 1-0